fUSD/lending_fUSD_20260511
["ID","MTS","AMOUNT","RATE_DAILY","PERIOD"]
[422008544,1778453452000,-457.90180185,0.00035855,2]
[422008541,1778453452000,-2682.19864409,0.00035748,120]
[422008546,1778453452000,-150.0,0.00035981,2]
[422008539,1778453452000,-367.795083,0.00035616,7]
[422008542,1778453452000,-1282.94394863,0.00035811,120]
[422008540,1778453452000,-367.795081,0.00035616,7]
[422008553,1778453452000,-1065.2028456,0.0003653,2]
[422008552,1778453452000,-1818.45,0.000364,7]
[422008554,1778453452000,-151.0,0.00036535,30]
[422008550,1778453452000,-207.38,0.00036362,60]
[422008560,1778453452000,-458.16527752,0.00036945,2]
[422008551,1778453452000,-173.36,0.00036362,60]
[422008555,1778453452000,-157.0,0.00036535,30]
[422008549,1778453452000,-261.31760823,0.00036258,2]
[422008545,1778453452000,-1357.01952916,0.00035961,120]
[422008547,1778453452000,-1357.01952916,0.00036054,120]
[422008543,1778453452000,-1357.01952916,0.00035838,120]
[422008556,1778453452000,-1184.0,0.00036535,30]
[422008626,1778453453000,-337.08,0.00037,30]
[422008630,1778453453000,-197.81656445,0.00037675,73]
[422008627,1778453453000,-2514.9,0.00037,14]
[422008631,1778453453000,-150.0,0.0003778,2]
[422008629,1778453453000,-10000.0,0.00037498,2]
[422008620,1778453453000,-343.63244301,0.00036982,2]
[422008625,1778453453000,-153.48,0.00037,2]
[422008618,1778453453000,-250.0,0.00036963,7]
[422008617,1778453453000,-501.0,0.00036953,15]
[422008615,1778453453000,-343.632443,0.00036945,2]
[422008628,1778453453000,-330.0,0.00037108,43]
[422008638,1778453453000,-1253.284,0.00038,2]
[422008644,1778453453000,-503.0,0.00038298,16]
[422008637,1778453453000,-153.53,0.00038,60]
[422008635,1778453453000,-153.48,0.00038,60]
[422008634,1778453453000,-153.48,0.00038,30]
[422008636,1778453453000,-153.48,0.00038,60]
[422008633,1778453453000,-153.48,0.00038,30]
[422008640,1778453453000,-260.308773,0.00038,2]
[422008641,1778453453000,-375.2,0.00038125,30]
[422008639,1778453453000,-1099.5765,0.00038,2]
[422008642,1778453453000,-152.0,0.00038128,4]
[422008648,1778453453000,-500.0,0.00038356,60]
[422008643,1778453453000,-436.0956,0.0003823,30]
[422008647,1778453453000,-187.4466,0.00038351,2]
[422008646,1778453453000,-150.5,0.00038351,2]
[422008632,1778453453000,-153.48,0.00038,30]
[422008621,1778453453000,-351.15842909,0.00036982,2]
[422008606,1778453453000,-603.85506578,0.00036945,2]
[422008614,1778453453000,-598.10714269,0.00036945,2]
[422008645,1778453453000,-31337.12,0.000383,7]
[422008590,1778453453000,-527.2192813,0.00036945,2]
[422008598,1778453453000,-463.38560569,0.00036945,2]
[422008591,1778453453000,-399.47373702,0.00036945,2]
[422008595,1778453453000,-1146.02256466,0.00036945,2]
[422008592,1778453453000,-300.26547527,0.00036945,2]
[422008597,1778453453000,-863.58946345,0.00036945,2]
[422008593,1778453453000,-598.10714269,0.00036945,2]
[422008594,1778453453000,-526.36126599,0.00036945,2]
[422008596,1778453453000,-309.2779459,0.00036945,2]
[422008599,1778453453000,-451.46014752,0.00036945,2]
[422008601,1778453453000,-483.59861358,0.00036945,2]
[422008600,1778453453000,-300.0,0.00036945,2]
[422008602,1778453453000,-309.51866284,0.00036945,2]
[422008609,1778453453000,-399.47373702,0.00036945,2]
[422008604,1778453453000,-1093.63973599,0.00036945,2]
[422008608,1778453453000,-1065.85133357,0.00036945,2]
[422008603,1778453453000,-300.0,0.00036945,2]
[422008607,1778453453000,-527.2192813,0.00036945,2]
[422008610,1778453453000,-725.34798474,0.00036945,2]
[422008605,1778453453000,-492.19455268,0.00036945,2]
[422008612,1778453453000,-400.57659228,0.00036945,2]
[422008623,1778453453000,-204.54,0.00037,2]
[422008624,1778453453000,-176.45,0.00037,2]
[422008622,1778453453000,-701.80008429,0.00036982,2]
[422008611,1778453453000,-301.4896953,0.00036945,2]
[422008613,1778453453000,-300.0,0.00036945,2]
[422008616,1778453453000,-755.70739658,0.00036945,2]
[422008650,1778453453000,-500.0,0.00038356,2]
[422008619,1778453453000,-705.39391222,0.00036969,14]
[422008649,1778453453000,-600.0,0.00038356,60]
[422008681,1778453453000,-500.0,0.00038356,2]
[422008686,1778453453000,-500.0,0.00038356,2]
[422008685,1778453453000,-500.0,0.00038356,2]
[422008688,1778453453000,-500.0,0.00038356,2]
[422008696,1778453453000,-500.0,0.00038356,2]
[422008687,1778453453000,-500.0,0.00038356,2]
[422008697,1778453453000,-500.0,0.00038356,2]
[422008693,1778453453000,-500.0,0.00038356,2]
[422008690,1778453453000,-500.0,0.00038356,2]
[422008691,1778453453000,-500.0,0.00038356,2]
[422008695,1778453453000,-500.0,0.00038356,2]
[422008694,1778453453000,-500.0,0.00038356,2]
[422008692,1778453453000,-500.0,0.00038356,2]
[422008689,1778453453000,-500.0,0.00038356,2]
[422008698,1778453453000,-500.0,0.00038356,2]
[422008699,1778453453000,-500.0,0.00038356,2]
[422008704,1778453453000,-500.0,0.00038356,2]
[422008700,1778453453000,-500.0,0.00038356,2]
[422008702,1778453453000,-500.0,0.00038356,2]
[422008701,1778453453000,-500.0,0.00038356,2]
[422008703,1778453453000,-500.0,0.00038356,2]
[422008708,1778453453000,-500.0,0.00038356,2]
[422008705,1778453453000,-500.0,0.00038356,2]
[422008707,1778453453000,-456.41943235,0.00038356,2]
[422008709,1778453453000,-500.0,0.00038356,2]
[422008710,1778453453000,-500.0,0.00038356,2]
[422008651,1778453453000,-500.0,0.00038356,2]
[422008678,1778453453000,-500.0,0.00038356,2]
[422008682,1778453453000,-500.0,0.00038356,2]
[422008706,1778453453000,-500.0,0.00038356,2]
[422008679,1778453453000,-500.0,0.00038356,2]
[422008652,1778453453000,-500.0,0.00038356,2]
[422008677,1778453453000,-500.79216293,0.00038356,2]
[422008654,1778453453000,-500.0,0.00038356,2]
[422008658,1778453453000,-500.0,0.00038356,2]
[422008657,1778453453000,-500.0,0.00038356,2]
[422008656,1778453453000,-500.0,0.00038356,2]
[422008653,1778453453000,-500.0,0.00038356,2]
[422008660,1778453453000,-574.41187752,0.00038356,2]
[422008670,1778453453000,-500.0,0.00038356,2]
[422008659,1778453453000,-500.0,0.00038356,2]
[422008671,1778453453000,-500.0,0.00038356,2]
[422008661,1778453453000,-500.0,0.00038356,2]
[422008663,1778453453000,-500.0,0.00038356,2]
[422008662,1778453453000,-500.0,0.00038356,2]
[422008655,1778453453000,-500.0,0.00038356,2]
[422008665,1778453453000,-506.97378767,0.00038356,2]
[422008669,1778453453000,-500.0,0.00038356,2]
[422008680,1778453453000,-500.0,0.00038356,2]
[422008676,1778453453000,-500.0,0.00038356,2]
[422008684,1778453453000,-500.0,0.00038356,2]
[422008683,1778453453000,-500.0,0.00038356,2]
[422008673,1778453453000,-500.0,0.00038356,2]
[422008674,1778453453000,-500.0,0.00038356,2]
[422008672,1778453453000,-500.0,0.00038356,2]
[422008664,1778453453000,-500.0,0.00038356,2]
[422008668,1778453453000,-200.71687066,0.00038356,2]
[422008666,1778453453000,-500.0,0.00038356,2]
[422008675,1778453453000,-500.0,0.00038356,2]
[422008667,1778453453000,-500.0,0.00038356,2]
[422008743,1778453454000,-300.0,0.00038356,2]
[422008740,1778453454000,-300.0,0.00038356,2]
[422008737,1778453454000,-500.0,0.00038356,2]
[422008741,1778453454000,-300.0,0.00038356,2]
[422008739,1778453454000,-500.0,0.00038356,2]
[422008738,1778453454000,-500.0,0.00038356,2]
[422008744,1778453454000,-300.0,0.00038356,2]
[422008736,1778453454000,-500.0,0.00038356,2]
[422008742,1778453454000,-300.0,0.00038356,2]
[422008734,1778453454000,-500.0,0.00038356,2]
[422008748,1778453454000,-300.0,0.00038356,2]
[422008749,1778453454000,-300.0,0.00038356,2]
[422008755,1778453454000,-212.105601,0.00038356,30]
[422008757,1778453454000,-212.105601,0.00038356,30]
[422008751,1778453454000,-300.0,0.00038356,2]
[422008756,1778453454000,-212.105601,0.00038356,30]
[422008754,1778453454000,-156.71350795,0.00038356,2]
[422008758,1778453454000,-212.105601,0.00038356,30]
[422008750,1778453454000,-300.0,0.00038356,2]
[422008746,1778453454000,-300.0,0.00038356,2]
[422008753,1778453454000,-300.0,0.00038356,2]
[422008747,1778453454000,-300.0,0.00038356,2]
[422008745,1778453454000,-300.0,0.00038356,2]
[422008716,1778453454000,-500.0,0.00038356,2]
[422008733,1778453454000,-500.0,0.00038356,2]
[422008752,1778453454000,-300.0,0.00038356,2]
[422008719,1778453454000,-500.0,0.00038356,2]
[422008721,1778453454000,-500.0,0.00038356,2]
[422008720,1778453454000,-500.0,0.00038356,2]
[422008712,1778453454000,-500.0,0.00038356,2]
[422008717,1778453454000,-500.0,0.00038356,2]
[422008711,1778453454000,-500.0,0.00038356,2]
[422008715,1778453454000,-500.0,0.00038356,2]
[422008713,1778453454000,-500.0,0.00038356,2]
[422008714,1778453454000,-285.6744672,0.00038356,2]
[422008735,1778453454000,-500.0,0.00038356,2]
[422008718,1778453454000,-500.0,0.00038356,2]
[422008724,1778453454000,-500.0,0.00038356,2]
[422008727,1778453454000,-500.0,0.00038356,2]
[422008725,1778453454000,-500.0,0.00038356,2]
[422008730,1778453454000,-500.0,0.00038356,2]
[422008731,1778453454000,-500.0,0.00038356,2]
[422008722,1778453454000,-500.0,0.00038356,2]
[422008728,1778453454000,-500.0,0.00038356,2]
[422008729,1778453454000,-500.0,0.00038356,2]
[422008726,1778453454000,-500.0,0.00038356,2]
[422008732,1778453454000,-500.0,0.00038356,2]
[422008723,1778453454000,-500.0,0.00038356,2]
[422008760,1778453454000,-212.105601,0.00038356,30]
[422008779,1778453454000,-246.48,0.000388,30]
[422008763,1778453454000,-212.105601,0.00038356,30]
[422008786,1778453454000,-2513.62497446,0.00039,7]
[422008789,1778453454000,-123561.65742159,0.00039,120]
[422008792,1778453454000,-2632.98068792,0.00039,30]
[422008791,1778453454000,-2632.98068792,0.00039,30]
[422008790,1778453454000,-510.11987341,0.00039,5]
[422008794,1778453454000,-215.64,0.0003907,120]
[422008797,1778453454000,-1632.59,0.00039243,120]
[422008759,1778453454000,-212.105601,0.00038356,30]
[422008796,1778453454000,-600.0,0.00039178,60]
[422008799,1778453454000,-4986.4,0.00039319,120]
[422008798,1778453454000,-185.3091,0.0003931,2]
[422008800,1778453454000,-500.0,0.00039452,5]
[422008801,1778453454000,-406.0,0.00039552,2]
[422008802,1778453454000,-406.0,0.00039572,2]
[422008805,1778453454000,-2514.9,0.000396,14]
[422008804,1778453454000,-337.08,0.000396,30]
[422008803,1778453454000,-406.0,0.00039583,2]
[422008806,1778453454000,-330.0,0.00039604,63]
[422008807,1778453454000,-406.0,0.00039631,2]
[422008808,1778453454000,-4986.4,0.00039643,120]
[422008809,1778453454000,-150.0,0.00039669,2]
[422008788,1778453454000,-513.76,0.00039,2]
[422008784,1778453454000,-212.71,0.00038976,90]
[422008795,1778453454000,-1818.45,0.000391,30]
[422008793,1778453454000,-2632.98068792,0.00039,60]
[422008764,1778453454000,-212.105601,0.00038356,30]
[422008787,1778453454000,-9849.40330613,0.00039,5]
[422008765,1778453454000,-212.105601,0.00038356,30]
[422008761,1778453454000,-212.105601,0.00038356,30]
[422008767,1778453454000,-212.105601,0.00038356,30]
[422008766,1778453454000,-212.105601,0.00038356,30]
[422008771,1778453454000,-212.105601,0.00038356,30]
[422008769,1778453454000,-212.105601,0.00038356,30]
[422008774,1778453454000,-212.105597,0.00038356,30]
[422008773,1778453454000,-212.105601,0.00038356,30]
[422008768,1778453454000,-212.105601,0.00038356,30]
[422008762,1778453454000,-212.105601,0.00038356,30]
[422008772,1778453454000,-212.105601,0.00038356,30]
[422008770,1778453454000,-212.105601,0.00038356,30]
[422008782,1778453454000,-2000.0,0.000389,7]
[422008783,1778453454000,-168.36527993,0.000389,30]
[422008778,1778453454000,-10000.0,0.00038765,2]
[422008785,1778453454000,-4986.39,0.00038995,120]
[422008777,1778453454000,-501.0,0.00038746,16]
[422008781,1778453454000,-2509.21675425,0.000388,2]
[422008775,1778453454000,-207.5915448,0.00038356,2]
[422008776,1778453454000,-2326.835,0.0003845,51]
[422008780,1778453454000,-253.09,0.000388,16]
[422008836,1778453455000,-406.0,0.00039822,2]
[422008833,1778453455000,-564.0,0.00039807,2]
[422008834,1778453455000,-396.0,0.00039808,2]
[422008835,1778453455000,-456.0,0.00039814,2]
[422008847,1778453455000,-456.0,0.00039851,2]
[422008837,1778453455000,-456.0,0.00039827,2]
[422008838,1778453455000,-406.0,0.00039829,2]
[422008848,1778453455000,-406.0,0.00039856,2]
[422008839,1778453455000,-437.0,0.00039832,2]
[422008842,1778453455000,-456.0,0.00039838,2]
[422008843,1778453455000,-397.0,0.0003984,2]
[422008845,1778453455000,-456.0,0.00039844,2]
[422008844,1778453455000,-456.0,0.00039843,2]
[422008840,1778453455000,-397.0,0.00039832,2]
[422008846,1778453455000,-397.0,0.00039847,2]
[422008849,1778453455000,-456.0,0.00039857,2]
[422008832,1778453455000,-437.0,0.00039807,2]
[422008852,1778453455000,-406.0,0.0003986,2]
[422008841,1778453455000,-406.0,0.00039837,2]
[422008825,1778453455000,-456.0,0.0003978,2]
[422008823,1778453455000,-406.0,0.00039778,2]
[422008830,1778453455000,-406.0,0.00039799,2]
[422008851,1778453455000,-406.0,0.00039859,2]
[422008811,1778453455000,-50000.0,0.00039726,60]
[422008810,1778453455000,-406.0,0.00039685,2]
[422008815,1778453455000,-437.0,0.00039748,2]
[422008812,1778453455000,-267.64123004,0.00039731,95]
[422008816,1778453455000,-406.0,0.00039754,2]
[422008814,1778453455000,-406.0,0.00039745,2]
[422008813,1778453455000,-397.0,0.00039739,2]
[422008829,1778453455000,-397.0,0.00039795,2]
[422008817,1778453455000,-554.55169455,0.00039755,2]
[422008818,1778453455000,-456.0,0.00039763,2]
[422008820,1778453455000,-437.0,0.00039772,2]
[422008822,1778453455000,-456.0,0.00039773,2]
[422008821,1778453455000,-397.0,0.00039772,2]
[422008824,1778453455000,-406.0,0.00039778,2]
[422008826,1778453455000,-397.0,0.00039781,2]
[422008827,1778453455000,-397.0,0.00039788,2]
[422008828,1778453455000,-456.0,0.00039792,2]
[422008819,1778453455000,-397.0,0.00039764,2]
[422008855,1778453455000,-406.0,0.00039885,2]
[422008831,1778453455000,-200.0,0.000398,16]
[422008854,1778453455000,-280.41646029,0.00039868,2]
[422008874,1778453455000,-700.0,0.0003997,2]
[422008877,1778453455000,-540.0,0.00039972,2]
[422008882,1778453455000,-10000.0,0.00039983,2]
[422008883,1778453455000,-456.0,0.00039993,2]
[422008876,1778453455000,-406.0,0.00039971,2]
[422008878,1778453455000,-397.0,0.00039973,2]
[422008895,1778453455000,-3728.24215713,0.0004,45]
[422008884,1778453455000,-152.0,0.00039995,7]
[422008881,1778453455000,-437.0,0.00039983,2]
[422008885,1778453455000,-397.0,0.00039997,2]
[422008887,1778453455000,-244.85091969,0.0004,120]
[422008886,1778453455000,-406.0,0.00039999,2]
[422008888,1778453455000,-600.0,0.0004,60]
[422008890,1778453455000,-1880.0410644,0.00014405,2]
[422008889,1778453455000,-385694.08839235,0.0004,45]
[422008891,1778453455000,-1000.0,0.00027159,2]
[422008893,1778453455000,-191.0,0.00034544,60]
[422008892,1778453455000,-1813.3011547,0.00027935,2]
[422008879,1778453455000,-319.32205053,0.00039979,2]
[422008875,1778453455000,-700.0,0.0003997,2]
[422008880,1778453455000,-406.0,0.00039982,2]
[422008861,1778453455000,-261.31760823,0.000399,2]
[422008853,1778453455000,-456.0,0.00039862,2]
[422008858,1778453455000,-2998.0,0.00039898,28]
[422008857,1778453455000,-437.0,0.00039897,2]
[422008859,1778453455000,-456.0,0.000399,2]
[422008850,1778453455000,-397.0,0.00039858,2]
[422008860,1778453455000,-3427.02788759,0.000399,30]
[422008862,1778453455000,-397.0,0.00039904,2]
[422008872,1778453455000,-406.0,0.00039969,2]
[422008873,1778453455000,-700.0,0.0003997,2]
[422008856,1778453455000,-397.0,0.00039894,2]
[422008868,1778453455000,-406.0,0.00039931,2]
[422008864,1778453455000,-437.0,0.00039909,2]
[422008870,1778453455000,-397.0,0.00039957,2]
[422008866,1778453455000,-456.0,0.00039924,2]
[422008867,1778453455000,-159.9379131,0.00039929,2]
[422008894,1778453455000,-1500.0,0.00034795,2]
[422008865,1778453455000,-456.0,0.00039916,2]
[422008871,1778453455000,-4986.4,0.00039967,120]
[422008869,1778453455000,-437.0,0.00039948,2]
[422008863,1778453455000,-397.0,0.00039908,2]
[422008897,1778453501000,-3690.1014415,0.00014104,2]
[422008896,1778453501000,-197.90691566,0.00013698,2]
[422008898,1778453501000,-5000.0,0.00014405,2]
[422008900,1778453501000,-500.0,0.00014504,2]
[422008899,1778453501000,-1880.04106433,0.0001446,2]
[422008915,1778453502000,-500.0,0.00014504,2]
[422008912,1778453502000,-500.0,0.00014504,2]
[422008913,1778453502000,-500.0,0.00014504,2]
[422008910,1778453502000,-500.0,0.00014504,2]
[422008911,1778453502000,-500.0,0.00014504,2]
[422008909,1778453502000,-500.0,0.00014504,2]
[422008908,1778453502000,-500.0,0.00014504,2]
[422008907,1778453502000,-500.0,0.00014504,2]
[422008906,1778453502000,-500.0,0.00014504,2]
[422008903,1778453502000,-192.58739446,0.00014504,2]
[422008905,1778453502000,-500.0,0.00014504,2]
[422008904,1778453502000,-500.0,0.00014504,2]
[422008901,1778453502000,-500.0,0.00014504,2]
[422008902,1778453502000,-500.0,0.00014504,2]
[422008917,1778453502000,-1880.04106433,0.00014515,2]
[422008916,1778453502000,-200.14309241,0.00014504,2]
[422008914,1778453502000,-500.0,0.00014504,2]
[422008920,1778453502000,-1880.04106433,0.00014625,2]
[422008934,1778453502000,-200.0,0.0002,10]
[422008933,1778453502000,-3628.0,0.00019671,2]
[422008930,1778453502000,-6023.84,0.00016474,2]
[422008918,1778453502000,-1880.04106433,0.0001457,2]
[422008929,1778453502000,-300.92605614,0.00015514,2]
[422008932,1778453502000,-500.0,0.00018925,2]
[422008928,1778453502000,-208.08566668,0.00015514,2]
[422008931,1778453502000,-1000.0,0.00016835,2]
[422008923,1778453502000,-1880.04106433,0.0001479,2]
[422008927,1778453502000,-1000.0,0.00015011,2]
[422008924,1778453502000,-1880.04106433,0.00014845,2]
[422008925,1778453502000,-1880.04106433,0.000149,2]
[422008919,1778453502000,-500.55322451,0.00014573,2]
[422008921,1778453502000,-1880.04106433,0.0001468,2]
[422008922,1778453502000,-1880.04106433,0.00014735,2]
[422008926,1778453502000,-300.0,0.0001501,2]
[422008935,1778453508000,153.04193701,0.0001469,2]
[422008936,1778453516000,214.7734975,0.00017271,2]
[422008937,1778453524000,2739.22211009,0.00022338,120]
[422008939,1778453526000,188.83899739,0.00014504,2]
[422008938,1778453526000,170.19404117,0.00014504,2]
[422008940,1778453563000,51910.6381566,0.00013497,2]
[422008941,1778453669000,-300.0,0.00013496,2]
[422008943,1778453670000,-150.0,0.00013496,2]
[422008942,1778453670000,-300.0,0.00013496,2]
[422008944,1778453670000,-99250.0,0.00013497,2]
[422008945,1778453744000,152.0,0.00027276,120]
[422008949,1778454354000,-155.6732437,0.00012006,2]
[422008951,1778454442000,-152.0,0.00012106,2]
[422008950,1778454442000,-344.3267563,0.00012006,2]
[422008952,1778454442000,-152.0,0.00012106,2]
[422008954,1778454442000,-5169.8016405,0.00013,2]
[422008956,1778454442000,-300.0,0.00013049,2]
[422008955,1778454442000,-300.0,0.00013049,2]
[422008953,1778454442000,-310.96759265,0.000125,2]
[422008959,1778454442000,-152.0,0.00013073,2]
[422008958,1778454442000,-5407.87653927,0.0001305,2]
[422008960,1778454442000,-250.0,0.00013207,2]
[422008962,1778454442000,-710.50654426,0.00013399,2]
[422008957,1778454442000,-1200.0,0.00013049,2]
[422008964,1778454442000,-37105.14459796,0.000134,2]
[422008973,1778454442000,-500.0,0.00013698,2]
[422008961,1778454442000,-1028.19942176,0.00013397,2]
[422008971,1778454442000,-500.0,0.00013698,2]
[422008969,1778454442000,-500.0,0.00013698,2]
[422008970,1778454442000,-500.0,0.00013698,2]
[422008972,1778454442000,-500.0,0.00013698,2]
[422008967,1778454442000,-500.0,0.0001354,2]
[422008965,1778454442000,-303656.8083434,0.00013497,2]
[422008966,1778454442000,-170.0,0.00013497,3]
[422008963,1778454442000,-150.0,0.00013399,2]
[422008968,1778454442000,-500.0,0.00013698,2]
[422008976,1778454443000,-1500.0,0.00014,2]
[422008974,1778454443000,-500.0,0.00013698,2]
[422008975,1778454443000,-200.0,0.00013699,2]
[422008977,1778454444000,1376.3623715,0.00013397,2]
[422008983,1778454455000,-255.0,0.00014511,2]
[422008979,1778454455000,-166.66,0.00014318,2]
[422008982,1778454455000,-16217.02868807,0.0001448,2]
[422008980,1778454455000,-1680.0,0.00014354,2]
[422008981,1778454455000,-10443.74200638,0.0001439,2]
[422008984,1778454455000,-166.66,0.00014613,2]
[422008978,1778454455000,-166.66,0.00014022,2]
[422008986,1778454455000,-300.89536945,0.000149,2]
[422008987,1778454455000,-5000.0,0.000149,2]
[422008988,1778454455000,-166.66,0.00014908,2]
[422008989,1778454455000,-500.0,0.00014973,2]
[422008990,1778454455000,-500.0,0.00014973,2]
[422008991,1778454455000,-500.0,0.00014973,2]
[422008985,1778454455000,-6286.48684759,0.00014899,2]
[422008992,1778454455000,-500.0,0.00014973,2]
[422008994,1778454456000,-500.0,0.00014999,2]
[422008993,1778454456000,-609.23599351,0.00014999,2]
[422008996,1778454456000,-1258566.67265331,0.00015,2]
[422008995,1778454456000,-154.88383413,0.00014999,2]
[422009036,1778454632000,-2500.0,0.00016613,2]
[422009035,1778454632000,-2500.0,0.00016613,2]
[422009038,1778454632000,-214.7734975,0.00017204,2]
[422009039,1778454632000,-151.0,0.00017271,2]
[422009041,1778454632000,-500.0,0.00018904,2]
[422009037,1778454632000,-2500.0,0.00016613,2]
[422009040,1778454632000,-250.0,0.00017702,2]
[422009047,1778454632000,-171.0,0.0002,2]
[422009043,1778454632000,-500.0,0.00018904,2]
[422009045,1778454632000,-1028.19942176,0.00019287,2]
[422009046,1778454632000,-300.0,0.0002,2]
[422009044,1778454632000,-347.70270811,0.00018904,2]
[422009033,1778454632000,-2500.0,0.00016613,2]
[422009048,1778454632000,-613.0,0.0002,2]
[422009051,1778454632000,-40022.7098896,0.000208,2]
[422009055,1778454632000,-171.0,0.00021,2]
[422009042,1778454632000,-500.0,0.00018904,2]
[422009034,1778454632000,-2500.0,0.00016613,2]
[422009026,1778454632000,-166.66,0.00015498,2]
[422009031,1778454632000,-150.0,0.00016612,2]
[422009049,1778454632000,-10267.6442,0.000207,2]
[422009013,1778454632000,-900.10494811,0.00013396,2]
[422009014,1778454632000,-114.89505189,0.00013396,2]
[422009015,1778454632000,-1554.08063188,0.00013397,2]
[422009016,1778454632000,-906.78256907,0.00013397,2]
[422009017,1778454632000,-1600.33,0.00013397,2]
[422009018,1778454632000,-1804.06328209,0.00013397,2]
[422009020,1778454632000,-21918.62055404,0.00013397,2]
[422009019,1778454632000,-1405.13503512,0.00013397,2]
[422009021,1778454632000,-1060.14397087,0.00013397,2]
[422009022,1778454632000,-4247.49169896,0.00013397,2]
[422009023,1778454632000,-5625.61505797,0.00013397,2]
[422009024,1778454632000,-5000.0,0.000149,2]
[422009025,1778454632000,-166.66,0.00015203,2]
[422009027,1778454632000,-150.0,0.00016003,2]
[422009028,1778454632000,-724.41223663,0.00016183,2]
[422009030,1778454632000,-724.41223663,0.00016589,2]
[422009029,1778454632000,-1028.19942176,0.00016342,2]
[422009050,1778454632000,-867.3798623,0.000208,2]
[422009032,1778454632000,-168.15144076,0.00016613,2]
[422009053,1778454632000,-3276.5758708,0.000208,2]
[422009101,1778454632000,-445.38,0.00022131,2]
[422009105,1778454632000,-150.348,0.00022171,2]
[422009107,1778454632000,-150.0,0.00022171,2]
[422009106,1778454632000,-150.0,0.00022171,2]
[422009109,1778454632000,-624.0,0.00022171,2]
[422009121,1778454632000,-265.0,0.00022235,5]
[422009119,1778454632000,-1028.19942176,0.00022231,2]
[422009111,1778454632000,-926.0,0.00022171,2]
[422009113,1778454632000,-1269.0,0.00022171,2]
[422009115,1778454632000,-1237.543,0.00022171,2]
[422009128,1778454632000,-239.10633614,0.00022466,2]
[422009117,1778454632000,-6047.0,0.00022171,2]
[422009108,1778454632000,-150.295,0.00022171,2]
[422009130,1778454632000,-1611.97,0.00022538,2]
[422009132,1778454632000,-502.17,0.00022715,2]
[422009134,1778454632000,-657.4,0.00022893,2]
[422009057,1778454632000,-613.0,0.00021,2]
[422009096,1778454632000,-6562.37,0.00022075,2]
[422009103,1778454632000,-166.732,0.00022171,2]
[422009124,1778454632000,-113.43366386,0.00022466,2]
[422009090,1778454632000,-168.28,0.00021957,2]
[422009063,1778454632000,-500.0,0.00021897,2]
[422009098,1778454632000,-2000.0,0.00022117,2]
[422009059,1778454632000,-500.0,0.00021897,2]
[422009061,1778454632000,-500.0,0.00021897,2]
[422009067,1778454632000,-500.0,0.00021897,2]
[422009069,1778454632000,-500.0,0.00021897,2]
[422009071,1778454632000,-500.0,0.00021897,2]
[422009076,1778454632000,-500.0,0.00021897,2]
[422009073,1778454632000,-500.0,0.00021897,2]
[422009065,1778454632000,-500.0,0.00021897,2]
[422009082,1778454632000,-500.0,0.00021897,2]
[422009080,1778454632000,-500.0,0.00021897,2]
[422009084,1778454632000,-500.0,0.00021897,2]
[422009086,1778454632000,-530.85034362,0.00021897,2]
[422009088,1778454632000,-200.0,0.00021937,2]
[422009094,1778454632000,-613.0,0.00022,2]